[Event "IIFL Wealth  4th Mumbai Junior U-13"]
[Site "Mumbai"]
[Date "2019.01.06"]
[Round "8"]
[White "Vasudeva Varun"]
[Black "Sapre Vedang"]
[Result "1/2-1/2"]
[ECO "C54"]
[WhiteElo "1209"]
[BlackElo "1049"]
[Annotator "NA"]
[PlyCount "85"]
[EventDate "2018.12.30"]
[EventType "swiss"]
[EventCountry "IND"]
[SourceTitle "playchess.com"]
[Source "ChessBase"]
[SourceQuality "1"]
[TimeControl "40/5400+30:1800+30"]

1. e4 {[%emt 0:00:00]} e5 {[%emt 0:00:00]} 2. Nf3 {[%emt 0:00:00]} Nc6 {[%emt 0:00:00]} 3. Bc4 {[%emt 0:00:00]} Bc5 {[%emt 0:00:29]} 4. c3 {[%emt 0:00:00]} Nf6 {[%emt 0:00:31]} 5. d3 {[%emt 0:00:07]} d6 {[%emt 0:00:25]} 6. Bb3 {[%emt 0:00:07]} h6 {[%emt 0:00:27]} 7. O-O {[%emt 0:00:38]} O-O {[%emt 0:00:29]} 8. Nbd2 {[%emt 0:00:32]} a6 {[%emt 0:00:39]} 9. h3 {[%emt 0:00:34]} Ba7 {[%emt 0:00:34]} 10. Re1 {[%emt 0:00:10]} Re8 {[%emt 0:00:56]} 11. Nf1 {[%emt 0:00:28]} Be6 {[%emt 0:01:02]} 12. Bc2 {[%emt 0:00:09]} d5 {[%emt 0:00:37]} 13. Qe2 {[%emt 0:02:13]} dxe4 {[%emt 0:01:48]} 14. dxe4 {[%emt 0:00:09]} Qe7 {[%emt 0:00:39]} 15. Be3 {[%emt 0:00:47]} Bxe3 {[%emt 0:01:29]} 16. Nxe3 {[%emt 0:01:31]} Rad8 {[%emt 0:01:09]} 17. Rad1 {[%emt 0:01:49]} Rxd1 {[%emt 0:01:22]} 18. Rxd1 {[%emt 0:00:21]} Rd8 {[%emt 0:04:10]} 19. Rxd8+ {[%emt 0:00:50]} Qxd8 {[%emt 0:07:57]} 20. Nc4 {[%emt 0:00:24]} Bxc4 {[%emt 0:02:24]} 21. Qxc4 {[%emt 0:00:03]} Qe7 {[%emt 0:01:00]} 22. b4 {[%emt 0:02:33]} Nd7 {[%emt 0:02:11]} 23. a4 {[%emt 0:01:42]} Nb6 {[%emt 0:01:02]} 24. Qd3 {[%emt 0:00:46]} Qd6 {[%emt 0:00:24]} 25. b5 {[%emt 0:01:38]} axb5 {[%emt 0:01:42]} 26. Qxd6 {[%emt 0:02:14]} cxd6 {[%emt 0:00:22]} 27. axb5 {[%emt 0:00:09]} Na7 {[%emt 0:00:23]} 28. Bd3 {[%emt 0:00:23]} Na4 {[%emt 0:00:15]} 29. c4 {[%emt 0:00:18]} Nc5 {[%emt 0:00:09]} 30. Bc2 {[%emt 0:00:40]} Kf8 {[%emt 0:00:58]} 31. Kf1 {[%emt 0:00:35]} Nc8 {[%emt 0:01:15]} 32. Ke1 {[%emt 0:00:34]} Nb6 {[%emt 0:00:10]} 33. Nd2 {[%emt 0:00:19]} Ke7 {[%emt 0:00:35]} 34. Kd1 {[%emt 0:00:48]} Kf6 {[%emt 0:00:43]} 35. Kc1 {[%emt 0:00:30]} Kg5 {[%emt 0:00:33]} 36. g3 {[%emt 0:01:54]} h5 {[%emt 0:00:22]} 37. Bb1 {[%emt 0:02:06]} Nbd7 {[%emt 0:01:06]} 38. Nf3+ {[%emt 0:02:07]} Kf6 {[%emt 0:00:12]} 39. Kb2 {[%emt 0:01:09]} b6 {[%emt 0:00:48]} 40. Nh4 {[%emt 0:00:00]} g6 {[%emt 0:00:00]} 41. f4 {[%emt 0:01:17]} Ne6 {[%emt 0:03:00]} 42. Ng2 {[%emt 0:02:03]} exf4 {[%emt 0:00:40]} 43. gxf4 {[%emt 0:01:12] Ke5} 1/2-1/2

[Event "IIFL Wealth  4th Mumbai Junior U-13"]
[Site "Mumbai"]
[Date "2019.01.06"]
[Round "8"]
[White "Medhansh Rathi"]
[Black "Avaneesh Handur"]
[Result "1-0"]
[ECO "C54"]
[WhiteElo "1194"]
[BlackElo "1071"]
[Annotator "NA"]
[PlyCount "159"]
[EventDate "2018.12.30"]
[EventType "swiss"]
[EventCountry "IND"]
[SourceTitle "playchess.com"]
[Source "ChessBase"]
[SourceQuality "1"]
[TimeControl "40/5400+30:1800+30"]

1. e4 {[%emt 0:01:19]} e5 {[%emt 0:00:00]} 2. Nf3 {[%emt 0:00:07]} Nc6 {[%emt 0:00:00]} 3. Bc4 {[%emt 0:00:13]} Bc5 {[%emt 0:00:02]} 4. c3 {[%emt 0:00:29]} Nf6 {[%emt 0:00:13]} 5. d3 {[%emt 0:00:42]} O-O {[%emt 0:00:57]} 6. Nbd2 {[%emt 0:00:58]} d6 {[%emt 0:00:29]} 7. O-O {[%emt 0:02:37]} Be6 {[%emt 0:01:44]} 8. Bb3 {[%emt 0:05:00]} Qd7 {[%emt 0:04:50]} 9. Bc2 {[%emt 0:05:19]} d5 {[%emt 0:06:33]} 10. exd5 {[%emt 0:00:23]} Nxd5 {[%emt 0:00:32]} 11. Ne4 {[%emt 0:00:16]} Be7 {[%emt 0:00:49]} 12. Ng3 {[%emt 0:12:32]} Rad8 {[%emt 0:07:54]} 13. Re1 {[%emt 0:08:13]} f6 {[%emt 0:00:48]} 14. Qe2 {[%emt 0:09:42]} Kh8 {[%emt 0:12:34]} 15. h3 {[%emt 0:01:32]} Rfe8 {[%emt 0:04:10]} 16. d4 {[%emt 0:11:58]} Bd6 {[%emt 0:04:54]} 17. Qd3 {[%emt 0:00:23]} Bg8 {[%emt 0:00:49]} 18. dxe5 {[%emt 0:00:39]} Nxe5 {[%emt 0:01:07]} 19. Nxe5 {[%emt 0:00:21]} Bxe5 {[%emt 0:00:33]} 20. c4 {[%emt 0:01:34]} Nb6 {[%emt 0:04:04]} 21. Qxd7 {[%emt 0:00:40]} Nxd7 {[%emt 0:00:31]} 22. Bb3 {[%emt 0:00:42]} Bxg3 {[%emt 0:00:51]} 23. Rxe8 {[%emt 0:00:16]} Bxf2+ {[%emt 0:00:31]} 24. Kxf2 {[%emt 0:00:06]} Rxe8 {[%emt 0:00:17]} 25. Be3 {[%emt 0:00:31]} a6 {[%emt 0:02:21]} 26. Bf4 {[%emt 0:03:53]} c6 {[%emt 0:05:37]} 27. Rd1 Nc5 {[%emt 0:04:41]} 28. Kf3 {[%emt 0:06:22]} Be6 {[%emt 0:06:16]} 29. Be3 {[%emt 0:09:38]} Nd7 {[%emt 0:00:46]} 30. Bf4 {[%emt 0:02:26]} g5 {[%emt 0:01:50]} 31. Bh2 {[%emt 0:01:23]} Kg7 {[%emt 0:02:10]} 32. Rd6 {[%emt 0:04:04]} Kf8 {[%emt 0:06:25]} 33. g4 {[%emt 0:05:39]} Ke7 {[%emt 0:02:36]} 34. Rd2 {[%emt 0:00:40]} Rd8 {[%emt 0:01:20]} 35. Bd6+ {[%emt 0:01:30]} Kf7 {[%emt 0:00:58]} 36. Ke3 {[%emt 0:00:51]} Nb6 {[%emt 0:01:18]} 37. c5 {[%emt 0:00:38]} Bxb3 {[%emt 0:01:16]} 38. axb3 {[%emt 0:00:11]} Nc8 {[%emt 0:01:11]} 39. Bc7 {[%emt 0:02:45]} Rxd2 {[%emt 0:00:22]} 40. Kxd2 {[%emt 0:00:00]} Ne7 {[%emt 0:00:00]} 41. Kd3 {[%emt 0:00:58]} Nd5 {[%emt 0:01:45]} 42. Bd6 {[%emt 0:00:18]} Kg6 {[%emt 0:00:55]} 43. Ke4 {[%emt 0:00:15]} h5 {[%emt 0:01:53]} 44. Bg3 {[%emt 0:00:50]} hxg4 {[%emt 0:01:24]} 45. hxg4 {[%emt 0:33:37]} Nb4 {[%emt 0:01:31]} 46. Be1 {[%emt 0:00:00]} Nd5 {[%emt 0:00:54]} 47. Bd2 {[%emt 0:00:00]} Ne7 {[%emt 0:00:30]} 48. Be1 {[%emt 0:00:00]} f5+ {[%emt 0:00:56]} 49. gxf5+ {[%emt 0:00:00]} Nxf5 {[%emt 0:00:13]} 50. Ke5 {[%emt 0:00:00]} Ne7 {[%emt 0:00:47]} 51. Kd6 {[%emt 0:00:00]} Nd5 {[%emt 0:04:23]} 52. Kd7 {[%emt 0:00:00]} g4 {[%emt 0:00:11]} 53. Kc8 {[%emt 0:00:00]} Kf5 {[%emt 0:01:49]} 54. Kxb7 {[%emt 0:00:00]} Kf4 {[%emt 0:00:51]} 55. Kxc6 {[%emt 0:00:00]} Ne3 {[%emt 0:00:11]} 56. Kb6 {[%emt 0:00:00]} Kf3 {[%emt 0:00:44]} 57. c6 {[%emt 0:00:00]} Ng2 {[%emt 0:00:40]} 58. c7 {[%emt 0:00:00]} Nxe1 {[%emt 0:00:18]} 59. c8=Q g3 {[%emt 0:01:03]} 60. Qc3+ {[%emt 0:00:00]} Kf2 {[%emt 0:00:47]} 61. Qd2+ {[%emt 0:00:00]} Kf1 {[%emt 0:01:50]} 62. Qf4+ {[%emt 0:00:00]} Kg2 {[%emt 0:00:29]} 63. Kxa6 {[%emt 0:00:00]} Nf3 {[%emt 0:00:32]} 64. b4 {[%emt 0:00:00]} Kf2 {[%emt 0:00:21]} 65. Qc7 {[%emt 0:00:00]} g2 {[%emt 0:00:47]} 66. Qc5+ {[%emt 0:00:00]} Kg3 {[%emt 0:00:25]} 67. b5 {[%emt 0:00:00]} Ne5 {[%emt 0:01:29]} 68. Qxe5+ {[%emt 0:00:00]} Kf2 {[%emt 0:00:17]} 69. Qd4+ {[%emt 0:00:00]} Kf1 {[%emt 0:00:21]} 70. b6 {[%emt 0:00:00]} g1=Q {[%emt 0:00:18]} 71. Qxg1+ {[%emt 0:00:00]} Kxg1 {[%emt 0:00:25]} 72. b7 {[%emt 0:00:00]} Kf2 {[%emt 0:00:20]} 73. b8=Q {[%emt 0:00:00]} Kf3 {[%emt 0:00:21]} 74. b4 {[%emt 0:00:00]} Ke4 {[%emt 0:00:19]} 75. b5 {[%emt 0:00:00]} Kd5 {[%emt 0:00:14]} 76. b6 {[%emt 0:00:00]} Kc6 {[%emt 0:00:21]} 77. b7 {[%emt 0:00:00]} Kc5 {[%emt 0:01:58]} 78. Qc7+ {[%emt 0:00:00]} Kb4 {[%emt 0:00:10]} 79. b8=Q+ {[%emt 0:00:00]} Ka4 {[%emt 0:00:12]} 80. Qa5# {[%emt 0:00:00]} 1-0

[Event "IIFL Wealth  4th Mumbai Junior U-13"]
[Site "Mumbai"]
[Date "2019.01.06"]
[Round "8"]
[White "Gosrani, Reeyan"]
[Black "Sara Mody"]
[Result "1-0"]
[ECO "D02"]
[WhiteElo "1190"]
[BlackElo "1060"]
[Annotator "NA RC"]
[PlyCount "135"]
[EventDate "2018.12.30"]
[EventType "swiss"]
[EventCountry "IND"]
[SourceTitle "playchess.com"]
[Source "ChessBase"]
[SourceQuality "1"]
[TimeControl "40/5400+30:1800+30"]

1. d4 {[%emt 0:00:00]} d5 {[%emt 0:00:00]} 2. Nf3 {[%emt 0:00:00]} Nf6 {[%emt 0:00:01]} 3. Bf4 {[%emt 0:00:00]} Bf5 {[%emt 0:00:21]} 4. e3 {[%emt 0:00:32]} e6 {[%emt 0:00:35]} 5. Nbd2 {[%emt 0:00:41]} Bd6 {[%emt 0:01:23]} 6. Ne5 {[%emt 0:02:39]} O-O {[%emt 0:01:24]} 7. h3 {[%emt 0:02:13]} Nfd7 {[%emt 0:01:48]} 8. g4 {[%emt 0:00:56]} Be4 {[%emt 0:06:23]} 9. Nxe4 {[%emt 0:06:08]} dxe4 {[%emt 0:01:39]} 10. h4 {[%emt 0:03:35]} Nxe5 {[%emt 0:04:02]} 11. dxe5 {[%emt 0:02:58]} Be7 {[%emt 0:02:21]} 12. g5 {[%emt 0:02:23]} Nc6 {[%emt 0:03:38]} 13. Bg2 {[%emt 0:02:45]} Qd5 {[%emt 0:03:04]} 14. h5 {[%emt 0:03:11]} Rad8 {[%emt 0:12:06]} 15. O-O {[%emt 0:08:11]} Nb4 {[%emt 0:10:35]} 16. a3 {[%emt 0:04:31]} Qxd1 {[%emt 0:02:22]} 17. Raxd1 {[%emt 0:00:20]} Nd5 {[%emt 0:01:49]} 18. Bxe4 {[%emt 0:00:48]} Nxf4 {[%emt 0:00:37]} 19. exf4 {[%emt 0:00:12]} b6 {[%emt 0:00:33]} 20. Rd3 {[%emt 0:01:21]} Rxd3 {[%emt 0:02:34]} 21. Bxd3 {[%emt 0:00:22]} Rd8 {[%emt 0:00:52]} 22. Rd1 {[%emt 0:00:12]} c5 {[%emt 0:01:25]} 23. b3 {[%emt 0:02:00]} Rd4 {[%emt 0:00:37]} 24. b4 {[%emt 0:04:30]} Rxf4 {[%emt 0:00:23]} 25. bxc5 {[%emt 0:01:16]} Bxc5 {[%emt 0:00:53]} 26. Be2 {[%emt 0:01:51]} Kf8 {[%emt 0:01:43]} 27. Bb5 {[%emt 0:01:00]} Rd4 {[%emt 0:04:03]} 28. Ra1 {[%emt 0:06:29]} Rd5 {[%emt 0:01:19]} 29. Kg2 {[%emt 0:01:57]} Rxe5 {[%emt 0:00:17]} 30. f4 {[%emt 0:00:18]} Re3 {[%emt 0:01:36]} 31. Rd1 {[%emt 0:00:51]} Be7 {[%emt 0:01:22]} 32. a4 {[%emt 0:00:50]} e5 {[%emt 0:02:56]} 33. Rd7 {[%emt 0:03:40]} exf4 {[%emt 0:00:37]} 34. Rxa7 {[%emt 0:00:11]} Bc5 {[%emt 0:01:46]} 35. Ra8+ {[%emt 0:02:17]} Ke7 {[%emt 0:00:12]} 36. Ra7+ {[%emt 0:01:33]} Ke6 {[%emt 0:00:50]} 37. Bc4+ {[%emt 0:00:44]} Ke5 {[%emt 0:01:16]} 38. Rxf7 {[%emt 0:00:25]} Ke4 {[%emt 0:01:48]} 39. Bd3+ {[%emt 0:01:17]} Ke5 {[%emt 0:02:01]} 40. Rf5+ {[%emt 0:00:00]} Kd6 {[%emt 0:00:00]} 41. Rxf4 {[%emt 0:01:04]} h6 {[%emt 0:07:33]} 42. gxh6 {[%emt 0:00:34]} gxh6 {[%emt 0:00:27]} 43. Rf6+ {[%emt 0:00:29]} Re6 {[%emt 0:00:14]} 44. Rg6 {[%emt 0:01:49]} Ke7 {[%emt 0:01:14]} 45. Kf3 {[%emt 0:00:42]} Kf7 {[%emt 0:02:00]} 46. Kg4 {[%emt 0:02:31]} Rxg6+ {[%emt 0:00:38]} 47. hxg6+ {[%emt 0:00:50]} Kg7 {[%emt 0:00:09]} 48. Kf5 {[%emt 0:00:52]} Bd4 {[%emt 0:01:13]} 49. Ke6 {[%emt 0:00:28]} h5 {[%emt 0:00:46]} 50. Kd5 {[%emt 0:01:26]} Bc5 {[%emt 0:00:57]} 51. a5 {[%emt 0:00:35]} Bg1 {[%emt 0:01:46]} 52. a6 {[%emt 0:00:18]} b5 {[%emt 0:00:27]} 53. Bxb5 {[%emt 0:00:47]} Kxg6 {[%emt 0:00:45]} 54. c4 {[%emt 0:00:25]} h4 {[%emt 0:02:36]} 55. c5 {[%emt 0:01:06]} h3 {[%emt 0:01:07]} 56. Bc6 {[%emt 0:01:43]} Kf5 {[%emt 0:01:17]} 57. a7 {[%emt 0:00:19]} h2 {[%emt 0:01:21]} 58. Kc4 {[%emt 0:00:14]} Ke5 {[%emt 0:01:23]} 59. a8=Q {[%emt 0:00:37]} Ke6 {[%emt 0:00:40]} 60. Bd5+ {[%emt 0:01:15]} Ke5 {[%emt 0:00:44]} 61. c6 {[%emt 0:00:33]} Kd6 {[%emt 0:00:50]} 62. Qd8+ {[%emt 0:00:43]} Ke5 {[%emt 0:01:26]} 63. c7 {[%emt 0:00:54]} Kf4 {[%emt 0:00:31]} 64. c8=R {[%emt 0:00:46]} Ke5 {[%emt 0:00:24]} 65. Qe7+ {[%emt 0:00:15]} Kf4 {[%emt 0:00:41]} 66. Rf8+ {[%emt 0:00:08]} Kg3 {[%emt 0:00:55]} 67. Qg5+ {[%emt 0:00:31]} Kh3 {[%emt 0:02:28]} 68. Rh8# {[%emt 0:00:08]} 1-0

[Event "IIFL Wealth  4th Mumbai Junior U-13"]
[Site "Mumbai"]
[Date "2019.01.06"]
[Round "8"]
[White "Dhrithi Murgod"]
[Black "Bang Atharva"]
[Result "0-1"]
[ECO "B13"]
[WhiteElo "1177"]
[BlackElo "1582"]
[Annotator "NA RC"]
[PlyCount "122"]
[EventDate "2018.12.30"]
[EventType "swiss"]
[EventCountry "IND"]
[SourceTitle "playchess.com"]
[Source "ChessBase"]
[SourceQuality "1"]
[TimeControl "40/5400+30:1800+30"]

1. e4 {[%emt 0:00:44]} c6 {[%emt 0:00:00]} 2. d4 {[%emt 0:01:24]} d5 {[%emt 0:00:00]} 3. exd5 {[%emt 0:01:15]} cxd5 {[%emt 0:00:06]} 4. Bd3 {[%emt 0:03:15]} Nc6 {[%emt 0:00:08]} 5. c3 {[%emt 0:00:21]} Qc7 {[%emt 0:00:15]} 6. h3 {[%emt 0:02:57]} Nf6 {[%emt 0:00:16]} 7. Nf3 {[%emt 0:01:44]} g6 {[%emt 0:00:17]} 8. O-O {[%emt 0:03:45]} Bg7 {[%emt 0:04:17]} 9. Be3 {[%emt 0:05:21]} O-O {[%emt 0:00:33]} 10. Qc2 {[%emt 0:01:40]} Bd7 {[%emt 0:01:31]} 11. Nbd2 {[%emt 0:02:07]} Rfc8 {[%emt 0:02:07]} 12. Rac1 {[%emt 0:01:59]} a6 {[%emt 0:01:46]} 13. Nb3 {[%emt 0:04:25]} b5 {[%emt 0:04:46]} 14. Nc5 {[%emt 0:02:39]} Na5 {[%emt 0:00:53]} 15. Ne5 {[%emt 0:02:58]} Nc4 {[%emt 0:03:41]} 16. Bxc4 {[%emt 0:01:28]} bxc4 {[%emt 0:01:08]} 17. Bg5 {[%emt 0:01:11]} Bf5 {[%emt 0:00:29]} 18. Qd2 {[%emt 0:01:53]} Ne4 {[%emt 0:02:34]} 19. Nxe4 {[%emt 0:00:41]} Bxe4 {[%emt 0:00:21]} 20. Bf4 {[%emt 0:01:32]} Qb7 {[%emt 0:04:23]} 21. Ng4 {[%emt 0:02:01]} Rc6 {[%emt 0:28:13]} 22. f3 {[%emt 0:03:43]} Bf5 {[%emt 0:13:55]} 23. Nf2 {[%emt 0:00:15]} Rb6 {[%emt 0:00:43]} 24. Nd1 {[%emt 0:00:12]} Bd7 {[%emt 0:19:02]} 25. Re1 {[%emt 0:00:56]} Ba4 {[%emt 0:00:52]} 26. Rb1 {[%emt 0:00:17]} Bxd1 {[%emt 0:00:29]} 27. Rexd1 {[%emt 0:00:07]} a5 {[%emt 0:00:06]} 28. Re1 {[%emt 0:01:32]} a4 {[%emt 0:00:09]} 29. a3 {[%emt 0:00:13]} Rb3 {[%emt 0:00:22]} 30. Qc2 {[%emt 0:06:03]} Ra6 {[%emt 0:00:25]} 31. Bg5 {[%emt 0:02:56]} e6 {[%emt 0:01:32]} 32. Bd8 {[%emt 0:00:54]} Qd7 {[%emt 0:01:06]} 33. Bh4 {[%emt 0:00:52]} Rab6 {[%emt 0:00:24]} 34. Re2 {[%emt 0:01:35]} Bf8 {[%emt 0:00:24]} 35. Rf1 {[%emt 0:01:25]} Rxb2 {[%emt 0:00:09]} 36. Qxb2 {[%emt 0:00:24]} Rxb2 {[%emt 0:00:01]} 37. Rxb2 {[%emt 0:00:09]} Bxa3 {[%emt 0:00:10]} 38. Ra2 {[%emt 0:00:08]} Bd6 {[%emt 0:01:00]} 39. Bg5 {[%emt 0:00:51]} a3 {[%emt 0:00:06]} 40. Bh6 {[%emt 0:00:00]} Qa4 {[%emt 0:00:00]} 41. Rb1 {[%emt 0:01:05]} Qb3 {[%emt 0:00:32]} 42. Raa1 {[%emt 0:01:06]} Qxc3 {[%emt 0:00:38]} 43. Kh1 {[%emt 0:00:34]} f5 {[%emt 0:00:54]} 44. Rd1 {[%emt 0:02:29]} Qb2 {[%emt 0:01:27]} 45. Rab1 {[%emt 0:00:19]} c3 {[%emt 0:00:42]} 46. Rdc1 {[%emt 0:02:48]} c2 {[%emt 0:00:36]} 47. Ra1 {[%emt 0:00:08]} a2 {[%emt 0:00:04]} 48. Bd2 {[%emt 0:00:26]} Ba3 {[%emt 0:00:09]} 49. Kh2 {[%emt 0:00:35]} Qb1 {[%emt 0:00:19]} 50. Re1 {[%emt 0:00:13]} c1=Q {[%emt 0:00:08]} 51. Rxc1 {[%emt 0:00:29]} Bxc1 {[%emt 0:00:07]} 52. Bc3 {[%emt 0:00:14]} Bb2 {[%emt 0:00:05]} 53. Bxb2 {[%emt 0:00:07]} Qxb2 {[%emt 0:00:08]} 54. Rh1 {[%emt 0:00:08]} a1=Q {[%emt 0:00:23]} 55. Rxa1 {[%emt 0:00:08]} Qxa1 {[%emt 0:00:09]} 56. Kg3 {[%emt 0:00:07]} Qxd4 {[%emt 0:00:08]} 57. Kh2 {[%emt 0:00:12]} Qf2 {[%emt 0:00:10]} 58. Kh1 {[%emt 0:00:08]} d4 {[%emt 0:00:06]} 59. Kh2 {[%emt 0:00:07]} d3 {[%emt 0:00:19]} 60. Kh1 {[%emt 0:00:05]} d2 {[%emt 0:00:03]} 61. Kh2 {[%emt 0:00:07]} d1=Q {[%emt 0:01:10]} 0-1

[Event "IIFL Wealth  4th Mumbai Junior U-13"]
[Site "Mumbai"]
[Date "2019.01.06"]
[Round "8"]
[White "Thatavarthy Siva Suhas"]
[Black "Athalye Varad"]
[Result "1/2-1/2"]
[ECO "A45"]
[WhiteElo "1173"]
[BlackElo "1442"]
[Annotator "NA"]
[PlyCount "113"]
[EventDate "2018.12.30"]
[EventType "swiss"]
[EventCountry "IND"]
[SourceTitle "playchess.com"]
[Source "ChessBase"]
[SourceQuality "1"]
[TimeControl "40/5400+30:1800+30"]

1. d4 {[%emt 0:02:59]} Nf6 {[%emt 0:00:00]} 2. Bf4 {[%emt 0:00:43]} d6 {[%emt 0:00:00]} 3. h3 b6 {[%emt 0:01:20]} 4. e3 {[%emt 0:01:15]} Bb7 {[%emt 0:00:08]} 5. Nf3 {[%emt 0:00:08]} g6 {[%emt 0:01:59]} 6. c3 {[%emt 0:01:20]} Bg7 {[%emt 0:01:13]} 7. Nbd2 {[%emt 0:03:13]} Nbd7 {[%emt 0:00:47]} 8. Be2 {[%emt 0:01:55]} O-O {[%emt 0:03:00]} 9. Qc2 {[%emt 0:01:02]} c5 {[%emt 0:01:06]} 10. O-O {[%emt 0:04:52]} Re8 {[%emt 0:01:26]} 11. Rac1 {[%emt 0:07:05]} Rc8 {[%emt 0:01:53]} 12. Qb3 {[%emt 0:03:21]} e5 {[%emt 0:02:29]} 13. dxe5 {[%emt 0:07:26]} dxe5 {[%emt 0:02:55]} 14. Bh2 {[%emt 0:00:52]} e4 {[%emt 0:08:35]} 15. Ne1 {[%emt 0:18:39]} Ne5 16. Rd1 {[%emt 0:04:24]} Qe7 {[%emt 0:04:43]} 17. Bxe5 {[%emt 0:04:33]} Qxe5 {[%emt 0:01:55]} 18. Nc4 {[%emt 0:00:13]} Qe6 {[%emt 0:00:57]} 19. Nd6 {[%emt 0:02:41]} Bd5 {[%emt 0:02:28]} 20. Rxd5 {[%emt 0:02:14]} Qxd5 {[%emt 0:14:53]} 21. Qxd5 {[%emt 0:00:47]} Nxd5 {[%emt 0:00:11]} 22. Nxe8 {[%emt 0:00:17]} Rxe8 {[%emt 0:00:11]} 23. Nc2 {[%emt 0:01:56]} Kf8 {[%emt 0:03:44]} 24. Rd1 {[%emt 0:02:23]} Nf6 {[%emt 0:01:55]} 25. Na3 {[%emt 0:01:15]} Ke7 {[%emt 0:01:13]} 26. Nb5 {[%emt 0:01:33]} Ra8 {[%emt 0:02:51]} 27. Kf1 {[%emt 0:02:10]} Ne8 {[%emt 0:03:23]} 28. f3 {[%emt 0:06:32]} a6 {[%emt 0:08:09]} 29. Na3 {[%emt 0:00:10]} exf3 {[%emt 0:01:45]} 30. Bxf3 {[%emt 0:00:23]} Rd8 {[%emt 0:00:07]} 31. Rxd8 {[%emt 0:02:54]} Kxd8 {[%emt 0:01:17]} 32. Ke2 {[%emt 0:00:27]} Kc7 {[%emt 0:00:07]} 33. Kd3 {[%emt 0:00:19]} b5 {[%emt 0:00:09]} 34. Nc2 {[%emt 0:01:51]} Nd6 {[%emt 0:00:31]} 35. g4 {[%emt 0:02:00]} f5 {[%emt 0:01:25]} 36. gxf5 {[%emt 0:02:54]} gxf5 {[%emt 0:00:30]} 37. Ne1 {[%emt 0:05:07]} Kd7 {[%emt 0:02:33]} 38. Bd5 {[%emt 0:01:23]} Bf6 {[%emt 0:01:52]} 39. Ng2 Ne8 {[%emt 0:00:45]} 40. Nf4 {[%emt 0:00:00]} Nc7 {[%emt 0:00:00]} 41. Bg8 {[%emt 0:03:14]} Bg5 {[%emt 0:05:48]} 42. Bxh7 {[%emt 0:00:59]} Bxf4 {[%emt 0:00:03]} 43. Bxf5+ {[%emt 0:00:08]} Kd6 {[%emt 0:00:43]} 44. exf4 {[%emt 0:00:09]} Nd5 {[%emt 0:00:19]} 45. Ke4 {[%emt 0:01:07]} c4 {[%emt 0:00:26]} 46. Kf3 {[%emt 0:01:17]} Nb6 {[%emt 0:00:15]} 47. Bc2 {[%emt 0:01:09]} a5 {[%emt 0:00:22]} 48. h4 {[%emt 0:02:56]} a4 {[%emt 0:00:47]} 49. h5 {[%emt 0:00:19]} Ke6 {[%emt 0:00:02]} 50. Kg4 {[%emt 0:00:37]} Kf6 {[%emt 0:00:27]} 51. Be4 {[%emt 0:00:35]} a3 {[%emt 0:00:23]} 52. bxa3 {[%emt 0:03:08]} Na4 {[%emt 0:00:03]} 53. h6 {[%emt 0:05:05]} Nxc3 {[%emt 0:00:08]} 54. Bc2 {[%emt 0:12:26]} Nd5 {[%emt 0:00:01]} 55. Kf3 {[%emt 0:00:45]} b4 {[%emt 0:04:36]} 56. a4 {[%emt 0:02:33]} Nc3 {[%emt 0:00:40]} 57. a5 {Ke5 Ke4+} 1/2-1/2

[Event "IIFL Wealth  4th Mumbai Junior U-13"]
[Site "Mumbai"]
[Date "2019.01.06"]
[Round "8"]
[White "Aarna Chugh"]
[Black "Shah Hiya"]
[Result "1-0"]
[ECO "A45"]
[WhiteElo "1164"]
[BlackElo "1039"]
[Annotator "NA RC"]
[PlyCount "74"]
[EventDate "2018.12.30"]
[EventType "swiss"]
[EventCountry "IND"]
[SourceTitle "playchess.com"]
[Source "ChessBase"]
[SourceQuality "1"]
[TimeControl "40/5400+30:1800+30"]

1. d4 {[%emt 0:00:00]} Nf6 {[%emt 0:00:00]} 2. Bf4 {[%emt 0:00:00]} e6 {[%emt 0:00:00]} 3. e3 {[%emt 0:00:07]} d5 {[%emt 0:00:00]} 4. Nf3 {[%emt 0:00:12]} Bd6 {[%emt 0:00:00]} 5. Bg3 {[%emt 0:00:28]} c5 {[%emt 0:00:39]} 6. c3 {[%emt 0:00:13]} b6 {[%emt 0:00:07]} 7. Bd3 {[%emt 0:01:43]} Bb7 {[%emt 0:00:43]} 8. Nbd2 {[%emt 0:04:04]} Nc6 {[%emt 0:03:06]} 9. O-O {[%emt 0:06:49]} O-O {[%emt 0:07:07]} 10. Qe2 {[%emt 0:10:58]} Qc7 {[%emt 0:01:05]} 11. Rfe1 {[%emt 0:04:53]} Rfe8 {[%emt 0:03:46]} 12. Rad1 {[%emt 0:07:27]} Bxg3 {[%emt 0:07:58]} 13. hxg3 {[%emt 0:01:13]} e5 {[%emt 0:02:23]} 14. dxe5 {[%emt 0:01:03]} Nxe5 {[%emt 0:00:38]} 15. Bb5 {[%emt 0:07:24]} Nxf3+ {[%emt 0:03:26]} 16. Nxf3 {[%emt 0:01:15]} Re7 {[%emt 0:02:30]} 17. Qd3 {[%emt 0:09:09]} c4 {[%emt 0:05:17]} 18. Qd4 {[%emt 0:03:22]} Re4 {[%emt 0:01:42]} 19. Qd2 {[%emt 0:02:34]} a6 {[%emt 0:12:26]} 20. Ba4 {[%emt 0:01:27]} Re7 {[%emt 0:06:23]} 21. Bc2 {[%emt 0:02:10]} Rae8 {[%emt 0:03:19]} 22. Qd4 {[%emt 0:02:36]} Ne4 {[%emt 0:05:44]} 23. Bxe4 {[%emt 0:09:22]} Rxe4 {[%emt 0:00:42]} 24. Qd2 {[%emt 0:00:47]} Rg4 {[%emt 0:07:20]} 25. Qc2 {[%emt 0:03:56]} Re6 {[%emt 0:00:49]} 26. Qf5 {[%emt 0:02:33]} Rgg6 {[%emt 0:02:22]} 27. Rd4 {[%emt 0:02:55]} Rh6 {[%emt 0:05:06]} 28. Rh4 {[%emt 0:02:58]} Ref6 {[%emt 0:04:17]} 29. Qg4 {[%emt 0:02:14]} Rfg6 {[%emt 0:04:05]} 30. Qd4 {[%emt 0:01:06]} Qd7 {[%emt 0:04:05]} 31. Ne5 {[%emt 0:01:03]} Rxh4 {[%emt 0:03:28]} 32. Qxh4 {[%emt 0:01:01]} Qd6 {[%emt 0:02:12]} 33. Nxg6 {[%emt 0:00:19]} hxg6 {[%emt 0:00:41]} 34. Kh2 {[%emt 0:02:06]} b5 {[%emt 0:01:18]} 35. Rh1 {[%emt 0:00:40]} f6 {[%emt 0:00:35]} 36. Kg1 {[%emt 0:00:20]} Kf7 {[%emt 0:01:32]} 37. Qh8 {[%emt 0:00:45]} Qc6 {[%emt 0:01:39]} 1-0